bitfinex-derivatives/quotes_ETHF0:USTF0_20250130
["timestamp","ask_amount","ask_price","bid_price","bid_amount"]
[1738254200256,0.00189502,3268.0,3267.5,0.5072]
[1738254200554,0.612,3267.8,3267.5,0.5072]
[1738254201148,0.61198,3267.9,3267.5,0.5072]
[1738254201343,0.00189502,3268.0,3267.5,1.11924]
[1738254201547,0.61198,3267.9,3267.5,1.11924]
[1738254201948,0.00189502,3268.0,3267.7,0.61201]
[1738254202450,0.00189502,3268.0,3267.9,0.61197]
[1738254206360,0.00189502,3268.0,3267.8,3.16628026]
[1738254206758,0.61385502,3268.0,3267.8,3.16628026]
[1738254207058,0.00189502,3268.0,3267.8,3.16628026]
[1738254207254,0.61386502,3268.0,3267.8,3.16628026]
[1738254207651,0.00189502,3268.0,3267.8,3.16628026]
[1738254208262,0.00189502,3268.0,3267.9,0.61198]
[1738254210163,0.00189502,3268.0,3267.8,3.77827026]
[1738254210360,0.00189502,3268.0,3267.8,3.16628026]
[1738254210561,0.00189502,3268.0,3267.9,3.22428206]
[1738254211163,0.00189502,3268.0,3267.9,2.61230206]
[1738254211463,0.00189502,3268.0,3267.9,3.22428206]
[1738254214866,0.00189502,3268.0,3267.9,2.61230206]
[1738254216671,0.00189502,3268.0,3267.9,3.22428206]
[1738254217583,0.00189502,3268.0,3267.9,2.61230206]
[1738254218280,0.00189502,3268.0,3267.9,3.22428206]
[1738254218681,0.00189502,3268.0,3267.9,2.61230206]
[1738254218879,0.00189502,3268.0,3267.9,3.22428206]
[1738254220283,0.00189502,3268.0,3267.9,2.61230206]
[1738254220482,0.00189502,3268.0,3267.9,3.22428206]
[1738254225088,0.00189502,3268.0,3267.9,2.61230206]
[1738254225288,0.00189502,3268.0,3267.9,3.22428206]
[1738254233792,3.2078,3269.1,3267.9,10.22460412]
[1738254233998,3.2078,3269.1,3269.0,2.61230206]
[1738254234800,0.61174,3269.2,3269.0,2.61230206]
[1738254235192,0.61173,3269.3,3269.0,3.22407206]
[1738254235392,4.7465,3269.6,3269.0,2.61230206]
[1738254235393,0.61174,3269.2,3269.0,2.61230206]
[1738254235588,0.61173,3269.3,3269.0,3.22406206]
[1738254235803,0.61172,3269.3,3269.0,3.22406206]
[1738254235999,0.61174,3269.2,3269.0,2.61230206]
[1738254236496,0.61175,3269.1,3269.0,2.61230206]
[1738254236993,0.61175,3269.2,3269.0,2.61230206]
[1738254237392,4.7465,3269.6,3269.0,2.61230206]
[1738254237597,0.61174,3269.2,3269.0,2.61230206]
[1738254237798,0.61175,3269.1,3269.0,2.61230206]
[1738254237994,3.2078,3269.6,3269.0,2.61230206]
[1738254238199,2.61230206,3270.5,3269.6,0.61164]
[1738254238200,0.61159,3270.0,3269.6,0.61164]
[1738254238402,0.5302,3270.1,3269.8,0.61161]
[1738254238699,0.61159,3270.0,3269.9,2.61230206]
[1738254239799,0.61164,3269.8,3269.6,2.61230206]
[1738254240294,0.61164,3269.7,3269.6,2.61230206]
[1738254240493,1.14177,3270.1,3269.8,0.61161]
[1738254240698,1.14177,3270.1,3270.0,2.61230206]
[1738254240998,0.61163,3269.8,3269.7,2.61230206]
[1738254241499,0.61166,3269.6,3269.5,0.00459207]
[1738254242099,1.12686,3269.6,3269.5,0.00459207]
[1738254242713,0.61174,3269.2,3269.1,2.61230206]
[1738254243703,1.52907,3269.8,3269.1,2.61230206]
[1738254243906,1.13891,3269.4,3269.1,3.22406206]
[1738254244206,0.00459207,3269.5,3269.4,0.6117]
[1738254244406,0.00459207,3269.5,3269.4,3.22400206]
[1738254244902,0.00459207,3269.5,3269.2,0.5159]
[1738254244903,0.61158,3270.1,3269.9,0.6116]
[1738254245108,3.7456,3270.3,3270.1,0.61156]
[1738254245109,4.2728,3270.3,3270.1,0.61156]
[1738254245307,4.88434,3270.3,3270.2,2.61230206]
[1738254247600,0.61159,3270.0,3269.9,3.22391206]
[1738254247798,4.2728,3270.3,3269.9,2.61230206]
[1738254248011,3.2078,3270.3,3270.2,2.61230206]
[1738254248205,3.8192,3271.1,3270.8,0.61143]
[1738254248409,3.81919,3271.1,3271.0,2.61230206]
[1738254249009,3.2078,3271.1,3271.0,2.61230206]
[1738254249205,3.2078,3271.1,3271.0,3.22370206]
[1738254249712,0.61139,3271.1,3271.0,2.61230206]
[1738254250399,0.521,3271.3,3271.1,0.61139]
[1738254250597,0.521,3271.3,3271.2,0.61137]
[1738254251205,0.521,3271.3,3271.0,2.61230206]
[1738254251206,3.2078,3271.6,3271.5,0.61131]
[1738254251414,0.5296,3271.9,3271.5,3.22361206]
[1738254251704,0.61129,3271.6,3271.5,2.61230206]
[1738254252306,0.61126,3271.8,3271.6,0.61129]
[1738254252608,0.61126,3271.8,3271.7,2.61230206]
[1738254253906,0.5296,3271.9,3271.7,2.61230206]
[1738254254108,1.14085,3271.9,3271.7,2.61230206]
[1738254254308,0.5296,3271.9,3271.7,2.61230206]
[1738254254504,1.14085,3271.9,3271.7,2.61230206]
[1738254254917,3.2078,3272.0,3271.7,2.61230206]
[1738254255116,5.084,3274.8,3271.7,2.61230206]
[1738254255117,0.61088,3273.9,3272.7,0.61109]
[1738254255414,0.61086,3273.9,3273.8,2.61230206]
[1738254255715,0.61077,3274.4,3273.8,2.61230206]
[1738254255915,0.61077,3274.4,3273.5,3.81872]
[1738254255916,1.1456,3274.3,3274.1,2.61230206]
[1738254256216,0.6108,3274.2,3274.1,2.61230206]
[1738254256604,0.6108,3274.2,3273.6,0.61092]
[1738254256605,5.0,3274.2,3273.6,3.2078]
[1738254256802,0.61092,3273.6,3273.5,0.00458497]
[1738254258515,1.13062,3273.6,3273.5,0.00458497]
[1738254260111,0.61099,3273.2,3273.1,3.2078]
[1738254260412,2.04702,3273.6,3272.9,2.61230206]
[1738254260413,0.61103,3273.0,3272.9,2.61230206]
[1738254260609,0.61093,3273.5,3272.9,2.61230206]
[1738254260811,0.5197,3273.6,3272.2,2.06095]
[1738254260812,0.5197,3273.6,3273.2,5.82010206]
[1738254261019,1.13062,3273.6,3273.5,2.61230206]
[1738254261513,0.5197,3273.6,3273.5,2.61230206]
[1738254261711,1.13062,3273.6,3273.5,2.61230206]
[1738254262110,0.00456134,3273.7,3273.5,2.61230206]
[1738254262315,0.61547134,3273.7,3273.6,3.2078]
[1738254263716,0.61546134,3273.7,3273.6,3.2078]
[1738254264717,0.61092,3273.6,3273.5,2.61230206]
[1738254265604,0.61547134,3273.7,3273.5,2.61230206]
[1738254265808,0.61547134,3273.7,3273.6,3.2078]
[1738254268313,0.61092,3273.6,3273.5,2.61230206]
[1738254268811,0.00456134,3273.7,3273.2,5.82010206]
[1738254269019,0.61097,3273.3,3273.2,3.2078]
[1738254269417,0.61097,3273.3,3273.2,5.82010206]
[1738254269813,1.64997,3273.3,3273.2,5.82010206]
[1738254270211,1.64997,3273.3,3273.2,6.43109206]
[1738254270517,0.61097,3273.4,3273.3,0.61097]
[1738254272019,0.61097,3273.4,3273.2,6.93268206]
[1738254272323,1.04256134,3273.7,3273.2,6.93268206]
[1738254272613,0.61546134,3273.7,3273.6,2.61230206]
[1738254272817,0.61546134,3273.7,3273.3,2.61230206]
[1738254272818,1.04256134,3273.7,3273.3,2.61230206]
[1738254273019,0.61095,3273.4,3273.3,2.61230206]
[1738254273415,0.61095,3273.4,3273.3,2.60936799]
[1738254275412,0.61095,3273.4,3273.3,3.22032799]
[1738254275618,0.61095,3273.4,3273.3,3.10986799]
[1738254276014,0.61095,3273.4,3273.3,2.60936799]
[1738254277721,1.53184134,3273.7,3273.2,3.2078]
[1738254277919,1.11137,3273.3,3273.2,3.2078]
[1738254281426,0.61099,3273.2,3273.1,0.00458497]
[1738254281821,0.61108,3272.7,3272.6,3.2078]
[1738254282021,1.033,3272.7,3272.4,2.61230206]
[1738254282220,0.61112,3272.5,3272.4,2.61230206]
[1738254284124,0.61112,3272.5,3272.4,3.22344206]
[1738254284423,0.61112,3272.5,3272.4,2.61230206]
[1738254285319,0.61112,3272.5,3272.4,3.22344206]
[1738254285920,4.73528,3273.3,3272.4,2.61230206]
[1738254286121,0.61105,3272.9,3272.8,2.61230206]
[1738254290133,0.61108,3272.7,3272.6,3.2078]
[1738254297136,3.2078,3273.3,3272.6,3.2078]
[1738254297341,0.61097,3273.3,3273.2,2.61230206]
[1738254297944,0.61097,3273.3,3273.2,3.22329206]
[1738254298140,0.61097,3273.3,3273.2,3.66740206]
[1738254298345,0.61097,3273.3,3273.2,2.61230206]
[1738254298546,0.61099,3273.2,3273.1,3.2078]
[1738254298846,0.61106,3272.8,3272.7,3.7284]
[1738254301850,2.01281,3273.2,3273.0,0.61102]
[1738254301851,0.611,3273.2,3273.0,0.61102]
[1738254302056,1.5302,3273.6,3273.1,5.82010206]
[1738254302256,1.5302,3273.6,3273.2,0.5348]
[1738254302460,0.61096,3273.4,3273.2,0.5348]
[1738254303559,1.5302,3273.6,3273.2,0.5348]
[1738254303957,0.61096,3273.4,3273.2,0.5348]
[1738254304155,0.4982,3273.6,3273.2,0.5348]
[1738254304358,0.61096,3273.4,3273.2,0.5348]
[1738254305455,0.61096,3273.4,3273.2,1.14578]
[1738254305655,0.00456134,3273.7,3273.2,0.5348]
[1738254305859,1.0405,3274.2,3273.6,5.82010206]
[1738254306055,1.0405,3274.2,3274.1,5.82010206]
[1738254306056,1.6513,3274.2,3274.1,5.82010206]
[1738254306360,1.0405,3274.2,3274.1,5.82010206]
[1738254306651,1.6513,3274.2,3274.1,3.2078]
[1738254307045,0.61079,3274.3,3274.1,5.82010206]
[1738254307244,0.6108,3274.2,3274.1,5.82010206]
[1738254307657,0.00458497,3274.5,3274.1,5.82010206]
[1738254307851,0.6108,3274.2,3274.1,5.82010206]
[1738254308359,0.6108,3274.2,3274.1,3.2078]
[1738254309258,0.61079,3274.3,3274.1,5.82010206]
[1738254309457,0.61077,3274.4,3274.1,5.82010206]
[1738254309658,0.61533497,3274.5,3274.1,5.82010206]
[1738254309860,0.61533497,3274.5,3274.2,0.61079]
[1738254310051,0.00458497,3274.5,3274.4,3.22306206]
[1738254310252,3.05195,3276.5,3274.4,3.22306206]
[1738254310253,3.2078,3275.9,3274.4,5.22460412]
[1738254310454,0.2495877,3276.3,3275.5,3.2078]
[1738254310455,0.61054,3275.6,3275.5,3.2078]
[1738254310661,1.032,3276.2,3275.5,3.2078]
[1738254310662,0.61054,3275.7,3275.5,3.2078]
[1738254310861,0.61054,3275.6,3275.5,3.2078]
[1738254313359,0.61054,3275.6,3275.4,2.61230206]
[1738254313360,3.2078,3275.8,3275.4,2.61230206]
[1738254313665,0.6106,3275.3,3275.2,0.00458497]
[1738254316965,1.6426,3275.3,3275.2,0.00458497]
[1738254317163,0.61077,3274.7,3274.6,3.2078]
[1738254317359,0.61084,3274.3,3274.2,2.61230206]
[1738254318067,1.032,3274.4,3274.2,2.61230206]
[1738254318460,0.61084,3274.3,3274.2,2.61230206]
[1738254319157,1.032,3274.4,3274.1,3.2078]
[1738254319352,0.6109,3274.0,3273.9,2.61688703]
[1738254320462,1.032,3274.1,3274.0,0.6109]
[1738254320667,1.032,3274.1,3274.0,3.22320206]
[1738254320859,1.032,3274.1,3274.0,2.61230206]
[1738254321165,1.64288,3274.1,3274.0,2.61230206]
[1738254321358,0.61088,3274.1,3274.0,2.61230206]
[1738254324770,0.61085,3274.3,3274.0,2.61230206]
[1738254324960,1.032,3274.4,3274.0,2.61230206]
[1738254325166,1.64282,3274.4,3274.3,2.61230206]
[1738254325475,0.61082,3274.4,3274.3,2.61230206]
[1738254325668,0.00458497,3274.6,3274.3,2.61230206]
[1738254325874,0.6108,3274.5,3274.3,3.22313206]
[1738254326172,0.6108,3274.5,3274.3,2.61230206]
[1738254326371,0.6108,3274.5,3274.3,3.22313206]
[1738254327166,0.00458497,3274.6,3274.3,2.61230206]
[1738254327366,0.00458497,3274.6,3274.4,1.0616]
[1738254327567,0.00458497,3274.6,3274.5,0.6108]
[1738254327867,0.00458497,3274.6,3274.4,1.0616]
[1738254328067,0.61536497,3274.6,3274.5,0.6108]
[1738254328268,0.61536497,3274.6,3274.4,1.67241]
[1738254328677,0.00458497,3274.6,3274.5,0.6108]
[1738254329064,0.00458497,3274.6,3274.5,3.8186]
[1738254330673,5.82010206,3276.1,3274.5,3.8186]
[1738254330674,0.61055,3275.9,3275.5,0.6106]
[1738254330979,3.2078,3276.1,3275.8,2.61230206]
[1738254331171,0.61053,3276.0,3275.8,3.22285206]
[1738254331570,3.2078,3276.1,3275.8,2.61230206]
[1738254331773,0.61053,3276.0,3275.8,3.22285206]
[1738254331971,0.61053,3276.0,3275.8,2.61230206]
[1738254332676,0.61053,3276.0,3275.8,3.22286206]
[1738254332876,0.61054,3275.9,3275.8,2.61230206]
[1738254335876,0.61058,3275.7,3275.6,0.00458497]
[1738254338969,3.81838,3275.7,3275.6,0.00458497]
[1738254340980,3.81838,3275.7,3275.6,0.00314643]
[1738254341574,3.81838,3275.7,3275.6,0.00200853]
[1738254344373,8.81838,3275.7,3275.6,8.53e-06]
[1738254344681,3.81838,3275.7,3275.6,8.53e-06]
[1738254344978,4.32568,3275.7,3275.6,8.53e-06]
[1738254346581,9.32568,3275.7,3275.6,8.53e-06]
[1738254347579,0.61071,3275.0,3274.9,3.22302206]
[1738254347789,0.61071,3275.0,3274.9,2.61230206]
[1738254349485,0.61076,3274.7,3274.6,2.61688703]
[1738254349674,0.61076,3274.7,3274.6,0.00458497]
[1738254351976,3.2078,3274.8,3273.8,1.14892]
[1738254352176,0.61091,3273.9,3273.8,1.14892]
[1738254352682,0.6109,3274.0,3273.9,0.61091]
[1738254353084,2.5591,3274.4,3273.8,0.538]
[1738254353386,0.61088,3274.1,3274.0,2.61230206]
[1738254355080,0.61088,3274.1,3273.7,3.2078]
[1738254355081,0.5008,3274.2,3273.7,2.61230206]
[1738254355277,0.61093,3273.8,3273.7,2.61230206]
[1738254356083,0.61095,3273.7,3273.6,0.00458497]
[1738254356987,0.61108,3273.0,3272.9,3.6938]
[1738254357285,0.61108,3273.0,3272.9,3.2078]
[1738254357477,1.52774,3273.0,3272.4,2.61230206]
[1738254357676,4.73554,3273.0,3272.4,2.61230206]
[1738254357878,0.61117,3272.5,3272.4,2.61230206]
[1738254360483,0.61114,3272.7,3272.4,3.22348206]
[1738254360789,1.64316,3272.6,3272.4,2.61230206]
[1738254360983,0.61117,3272.5,3272.4,2.61230206]
[1738254361486,0.61123,3272.2,3272.1,6.84488703]
[1738254361694,0.61123,3272.2,3272.1,3.21238497]
[1738254364488,0.61123,3272.2,3272.1,0.00458497]
[1738254368090,0.61123,3272.2,3272.1,4.97e-06]
[1738254368792,5.61123,3272.2,3272.1,4.97e-06]
[1738254368987,7.61230206,3272.2,3270.8,3.2078]
[1738254369195,0.61147,3270.9,3270.8,3.2078]
[1738254369391,0.61153,3270.6,3270.5,0.5115]
[1738254369792,0.61158,3270.3,3270.2,3.2078]
[1738254369992,3.2078,3270.6,3270.0,0.5152]
[1738254369993,0.61162,3270.1,3270.0,0.5152]
[1738254370498,0.61164,3270.0,3269.9,2.61688703]
[1738254370688,1.032,3270.0,3269.9,3.22854703]
[1738254370888,0.61164,3270.1,3269.9,2.61688703]
[1738254371088,3.21238497,3270.6,3269.9,2.61688703]
[1738254371289,0.61161,3270.2,3270.0,3.22393206]
[1738254371584,0.61162,3270.1,3270.0,2.61230206]
[1738254371790,1.032,3270.5,3270.0,2.61230206]
[1738254371991,1.032,3270.5,3270.3,2.61230206]
[1738254372193,1.032,3270.5,3270.4,1.10577]
[1738254372390,1.032,3270.5,3270.4,0.4942]
[1738254372885,1.64355,3270.5,3270.2,3.2078]
[1738254373193,0.61158,3270.3,3270.2,3.2078]
[1738254373392,1.032,3270.5,3269.9,0.00458497]
[1738254373590,0.61164,3270.0,3269.9,0.00458497]
[1738254375197,1.64464,3270.0,3269.9,0.00458497]
[1738254375500,0.61164,3270.0,3269.9,0.00458497]
[1738254375703,1.64464,3270.0,3269.9,0.00458497]
[1738254379201,0.61164,3270.0,3269.9,0.00458497]
[1738254379396,1.64464,3270.0,3269.9,0.00458497]
[1738254381198,0.61164,3270.0,3269.9,0.00458497]
[1738254381402,1.64464,3270.0,3269.9,0.00458497]
[1738254382497,0.61164,3270.0,3269.9,0.00458497]
[1738254382698,1.64464,3270.0,3269.9,0.00458497]
[1738254383102,0.61164,3270.0,3269.9,0.00458497]
[1738254383305,1.64464,3270.0,3269.9,0.00458497]
[1738254390805,0.61179,3269.2,3269.1,3.22409206]
[1738254391109,3.2078,3269.8,3269.1,2.61230206]
[1738254391406,0.61179,3269.2,3269.1,3.22410206]
[1738254391614,0.61179,3269.2,3269.1,2.61230206]
[1738254392001,3.2078,3269.4,3268.8,0.00458497]
[1738254392205,0.61185,3268.9,3268.8,0.00458497]
[1738254394010,0.61196,3268.3,3268.2,3.7422]
[1738254394210,0.61196,3268.3,3268.2,3.2078]
[1738254394911,1.52998,3268.2,3267.6,4.17990206]
[1738254395099,0.61201,3268.0,3267.9,0.00305673]
[1738254397405,1.12761,3268.0,3267.9,0.00305673]
[1738254397614,2.04565,3268.0,3267.1,1.0766]
[1738254397914,0.61211,3267.5,3267.3,0.61214]
[1738254398405,1.033,3267.6,3267.1,1.0766]
[1738254398611,1.033,3267.6,3267.3,3.2078]
[1738254398807,0.61213,3267.4,3267.3,3.2078]
[1738254399206,0.61213,3267.4,3266.8,1.53056]
[1738254399207,3.22443206,3267.4,3266.4,2.61230206]
[1738254399411,0.61225,3266.8,3266.5,3.82009]
[1738254399613,2.61230206,3267.1,3266.6,0.5369]
[1738254399912,0.61226,3266.7,3266.6,0.5369]
[1738254400113,0.61228,3266.6,3266.5,3.2078]
[1738254400808,2.61230206,3267.1,3266.5,3.2078]
[1738254400809,0.00458497,3266.9,3266.5,3.2078]
[1738254401005,0.61225,3266.8,3266.5,3.82009]
[1738254401201,0.00458497,3266.9,3266.5,3.2078]
[1738254401609,0.00458497,3266.9,3266.7,0.61225]
[1738254401814,0.00458497,3266.9,3266.8,0.61224]
[1738254402417,0.00458497,3266.9,3266.7,0.61224]
[1738254402605,0.00458497,3266.9,3266.6,0.5001]
[1738254402911,0.61228,3266.6,3266.5,3.2078]
[1738254403416,0.61235,3266.2,3266.1,3.2078]
[1738254403624,0.6124,3266.0,3265.7,3.2078]
[1738254403804,2.61230206,3266.4,3265.7,3.2078]
[1738254404111,0.61243,3265.8,3265.7,3.2078]
[1738254404307,0.61251,3265.4,3265.1,4.7503]
[1738254404511,0.61253,3265.3,3265.1,4.7503]
[1738254404704,0.61254,3265.2,3265.1,4.7503]
[1738254404910,3.2078,3265.5,3265.1,4.2502]
[1738254405110,5.82010206,3265.5,3265.1,4.2502]
[1738254405317,0.61254,3265.2,3265.1,3.7328]
[1738254405621,1.033,3265.6,3265.1,3.7328]
[1738254405808,2.61230206,3265.8,3265.2,0.4969]
[1738254406114,1.64545,3265.7,3265.2,0.4969]
[1738254406410,2.61230206,3265.8,3265.2,0.4969]
[1738254406608,1.033,3265.7,3265.4,0.61249]
[1738254406806,0.61247,3265.6,3265.2,1.10943]
[1738254407008,1.033,3265.7,3265.3,0.61251]
[1738254407009,1.64546,3265.7,3265.3,0.61251]
[1738254407210,1.64546,3265.7,3265.2,0.4969]
[1738254407404,1.64546,3265.7,3265.4,0.6125]
[1738254407611,1.033,3265.7,3265.4,0.6125]
[1738254407822,1.64545,3265.7,3265.4,0.61249]
[1738254408110,1.033,3265.7,3265.5,3.2078]
[1738254408507,1.64545,3265.7,3265.5,3.2078]
[1738254409317,1.033,3265.7,3265.5,3.82027]
[1738254410215,3.2078,3266.0,3265.5,3.2078]
[1738254410412,1.64644,3265.8,3265.5,3.82027]
[1738254410617,0.61245,3265.7,3265.5,3.2078]
[1738254411519,0.61246,3265.6,3265.5,3.2078]
[1738254411919,0.61254,3265.2,3265.1,3.7328]
[1738254412215,1.034,3265.8,3265.1,3.82034]
[1738254412423,0.6125,3265.4,3265.1,3.82034]
[1738254412810,0.61252,3265.3,3265.1,3.82034]
[1738254413020,1.034,3265.7,3265.1,3.82034]
[1738254413220,0.61247,3265.6,3265.1,3.2078]
[1738254413425,1.034,3265.5,3265.4,0.6125]
[1738254414219,1.034,3265.5,3265.3,0.61251]
[1738254414619,1.64649,3265.5,3265.1,3.2078]
[1738254414926,1.034,3265.5,3265.3,0.61251]
[1738254415220,1.64648,3265.5,3265.3,0.61251]
[1738254415428,1.6465,3265.5,3265.2,0.61252]
[1738254415731,1.6465,3265.5,3265.1,3.2078]
[1738254416028,1.64649,3265.5,3265.2,0.61252]
[1738254416215,1.034,3265.5,3265.3,0.61252]
[1738254416527,1.64649,3265.5,3265.3,0.61252]
[1738254417826,1.53071,3266.6,3265.3,3.17100996]
[1738254418018,0.61237,3266.1,3265.9,0.6124]
[1738254418222,0.61237,3266.1,3265.8,0.61242]
[1738254418730,0.61239,3266.0,3265.8,0.61242]
[1738254419627,0.61238,3266.1,3265.9,0.6124]
[1738254419824,0.61238,3266.1,3265.8,0.61241]
[1738254420131,0.61235,3266.2,3266.0,0.61238]
[1738254420331,0.61236,3266.2,3266.0,0.61238]
[1738254420525,0.61238,3266.1,3265.9,0.6124]
[1738254420728,0.61239,3266.0,3265.8,0.61242]
[1738254421127,0.61238,3266.1,3265.9,0.61241]
[1738254421430,4.2467,3266.7,3265.7,6.37880996]
[1738254421627,0.61228,3266.6,3266.4,0.61231]
[1738254421835,0.61231,3266.4,3266.2,1.14224]
[1738254422028,2.0729,3266.7,3266.2,0.5299]
[1738254422228,2.0729,3266.7,3266.3,0.5285]
[1738254422424,1.0389,3266.7,3266.3,0.5285]
[1738254422736,0.61224,3266.8,3266.6,3.82006]
[1738254423532,3.2078,3267.2,3266.6,3.2078]
[1738254423735,0.61681497,3266.9,3266.7,0.61226]
[1738254424331,0.00458497,3266.9,3266.8,0.61224]
[1738254424628,0.61216,3267.2,3267.0,0.61219]
[1738254424834,1.64611,3267.5,3267.2,0.61215]
[1738254425021,1.64611,3267.5,3267.1,0.5315]
[1738254425435,0.61212,3267.5,3267.2,0.61216]
[1738254425735,0.61212,3267.5,3267.2,0.61215]
[1738254425931,0.61669242,3267.6,3267.3,0.61214]
[1738254426121,0.61669242,3267.6,3267.1,0.5315]
[1738254426122,0.61211,3267.5,3267.1,0.5315]
[1738254426323,0.00459242,3267.6,3267.1,0.5315]
[1738254426725,0.00459242,3267.6,3267.1,1.0384]
[1738254426933,0.00459242,3267.6,3267.5,0.61211]
[1738254427729,0.00459242,3267.6,3267.4,0.61211]
[1738254428137,0.61669242,3267.6,3267.4,0.61211]
[1738254428326,0.00459242,3267.6,3267.1,1.0384]
[1738254428527,0.61669242,3267.6,3267.4,0.61212]
[1738254428844,0.00459242,3267.6,3267.1,1.0384]
[1738254429137,0.00141718,3267.6,3267.4,0.61211]
[1738254429930,0.00141718,3267.6,3267.4,0.61212]
[1738254430439,0.00141718,3267.6,3267.1,1.0384]
[1738254430735,0.00141718,3267.6,3267.5,3.81991]
[1738254431038,0.00141718,3267.6,3267.5,6.43331495]
[1738254431524,0.61202,3268.0,3267.5,5.82120495]
[1738254431726,2.0596,3268.4,3267.5,5.82120495]
[1738254431727,0.61206,3267.8,3267.5,5.82120495]
[1738254431934,0.61206,3267.8,3267.5,6.43329495]
[1738254432130,0.61204,3267.9,3267.6,0.61209]
[1738254432340,1.033,3268.2,3267.5,5.82120495]
[1738254432637,0.61205,3267.9,3267.6,0.61208]
[1738254432826,0.61204,3267.9,3267.6,0.61208]
[1738254433024,0.61204,3267.9,3267.5,5.82120495]
[1738254433236,0.61204,3267.9,3267.7,0.61207]
[1738254433625,1.03759242,3268.2,3267.5,5.82120495]
[1738254433626,0.61201,3268.1,3267.9,0.61203]
[1738254434032,0.00459242,3268.2,3267.5,5.82120495]
[1738254434338,0.61658242,3268.2,3268.0,0.61201]
[1738254434734,0.00459242,3268.2,3268.1,0.61199]
[1738254435435,0.00459242,3268.2,3268.1,3.22539495]
[1738254435833,0.00459242,3268.2,3268.1,0.61199]
[1738254437938,0.61193,3268.5,3268.3,0.61195]
[1738254438126,0.61193,3268.5,3268.3,3.81975]
[1738254438331,1.033,3268.7,3268.3,3.2078]
[1738254438532,0.61194,3268.4,3268.3,3.2078]
[1738254438726,1.033,3268.7,3268.3,3.2078]
[1738254438934,0.61193,3268.5,3268.3,3.81976]
[1738254439137,1.03759242,3268.7,3268.3,3.2078]
[1738254439532,0.61192,3268.5,3268.4,0.61194]
[1738254439729,0.61192,3268.5,3268.3,3.2078]
[1738254439730,0.61192,3268.5,3268.3,3.81975]
[1738254439930,1.03759242,3268.7,3268.3,3.2078]
[1738254440129,1.03759242,3268.7,3268.6,0.6119]
[1738254440130,0.00459242,3268.7,3268.6,0.6119]
[1738254440835,0.00459242,3268.7,3268.4,3.14410495]
[1738254440836,0.00459242,3268.7,3268.4,0.5307]
[1738254441036,0.61192,3268.5,3268.4,0.5307]
[1738254441539,0.61194,3268.4,3268.3,3.2078]
[1738254441936,0.61193,3268.5,3268.3,3.81976]
[1738254442137,0.00459242,3268.7,3268.3,3.2078]
[1738254442436,0.61194,3268.4,3268.3,3.81976]
[1738254442643,0.61194,3268.4,3268.3,3.2078]
[1738254443436,0.00459242,3268.7,3268.3,3.2078]
[1738254443641,0.61193,3268.5,3268.3,3.81975]
[1738254444344,0.61194,3268.4,3268.3,3.81975]
[1738254444942,0.61648242,3268.7,3268.5,0.61191]
[1738254445346,0.61191,3268.6,3268.4,0.61193]
[1738254445540,0.61194,3268.4,3268.3,3.2078]
[1738254445948,0.61193,3268.5,3268.3,3.81975]
[1738254446144,0.61194,3268.4,3268.3,3.2078]
[1738254447955,0.61196,3268.3,3268.2,0.61197]
[1738254449356,2.56733242,3268.7,3268.1,2.61340495]
[1738254449558,0.61197,3268.3,3268.1,3.22538495]
[1738254450257,0.6119,3268.6,3268.1,3.22538495]
[1738254450462,0.61197,3268.3,3268.1,3.22538495]
[1738254450652,0.61197,3268.3,3268.2,0.61198]
[1738254450850,1.52976,3268.6,3267.9,4.2697]
[1738254451157,2.56176,3268.6,3268.1,0.61199]
[1738254451353,0.61199,3268.1,3268.0,0.61201]
[1738254451967,0.61201,3268.0,3267.9,3.2078]
[1738254453466,0.5044,3268.2,3267.9,3.2078]
[1738254453758,0.61201,3268.1,3268.0,0.61201]
[1738254454162,0.61201,3268.1,3267.9,3.81983]
[1738254454662,0.61201,3268.0,3267.9,3.81983]
[1738254455062,0.61201,3268.1,3267.9,3.81983]
[1738254455654,1.11639,3268.2,3268.0,0.61201]
[1738254455853,0.61196,3268.4,3268.2,0.61197]
[1738254456155,4.2398,3268.5,3268.1,0.61198]
[1738254456361,5.76962,3268.5,3268.0,0.492]
[1738254456562,0.612,3268.1,3268.0,0.492]
[1738254456859,0.612,3268.1,3268.0,1.10401]
[1738254457363,0.612,3268.1,3268.0,0.492]
[1738254457664,0.612,3268.1,3267.9,3.81982]
[1738254457864,0.612,3268.1,3267.9,3.2078]
[1738254458057,0.612,3268.1,3268.0,0.61201]
[1738254459064,0.612,3268.1,3267.9,3.2078]
[1738254459365,0.612,3268.1,3268.0,0.61201]
[1738254459560,4.2398,3268.5,3267.9,3.2078]
[1738254459766,0.61198,3268.2,3268.0,0.61201]
[1738254460065,0.61198,3268.2,3268.1,0.612]
[1738254460566,0.61198,3268.2,3268.0,0.612]
[1738254461064,0.61199,3268.2,3268.0,0.612]
[1738254462366,0.61199,3268.2,3268.1,0.612]
[1738254462569,0.612,3268.1,3268.0,0.61201]
[1738254462765,1.032,3268.5,3268.0,0.61201]
[1738254462965,0.612,3268.1,3268.0,0.61201]
[1738254463267,0.61199,3268.2,3268.0,0.61201]
[1738254463468,0.61199,3268.2,3267.9,2.43351838]
[1738254463666,0.61198,3268.2,3268.0,0.61201]
[1738254464065,0.61198,3268.2,3268.1,0.612]
[1738254464370,0.61198,3268.2,3268.1,0.42239519]
[1738254464670,1.032,3268.5,3268.0,0.612]
[1738254464971,0.612,3268.1,3268.0,0.612]
[1738254465173,2.56182,3268.5,3268.0,0.612]
[1738254465363,0.61199,3268.1,3268.0,0.612]
[1738254465768,0.61197,3268.3,3268.1,0.61199]
[1738254466069,1.032,3268.5,3268.1,0.61199]
[1738254466376,0.61198,3268.2,3268.0,0.612]
[1738254467069,4.2398,3268.5,3267.9,2.43351838]
[1738254467271,0.61201,3268.0,3267.9,2.43351838]
[1738254470168,0.61201,3268.0,3267.9,1.63908223]